bitfinex-derivatives/quotes_ETHF0:USTF0_20241231
["timestamp","ask_amount","ask_price","bid_price","bid_amount"]
[1735657023063,0.2923,3425.4,3425.1,0.29232]
[1735657023262,3.6701,3425.5,3425.1,0.29232]
[1735657023463,3.6701,3425.5,3424.5,4.9743]
[1735657023770,0.29231,3425.3,3425.1,0.29232]
[1735657024064,3.6701,3425.5,3424.6,0.73092]
[1735657024252,3.6701,3425.5,3425.3,0.2923]
[1735657024459,3.96239,3425.5,3425.3,0.2923]
[1735657024858,0.2923,3425.4,3425.1,0.29232]
[1735657025055,3.6701,3425.5,3425.1,0.29232]
[1735657025460,0.29231,3425.3,3425.1,0.29232]
[1735657025864,3.96239,3425.5,3424.5,4.9743]
[1735657026168,3.96239,3425.5,3425.3,0.2923]
[1735657026663,0.4623,3425.5,3425.4,0.2923]
[1735657026855,3.2078,3425.9,3425.8,0.29226]
[1735657027769,3.2078,3425.9,3425.4,0.4415]
[1735657028066,0.29226,3425.8,3425.6,0.29228]
[1735657028264,3.2078,3425.9,3425.3,1.311]
[1735657028463,3.2078,3425.9,3425.8,0.29226]
[1735657029768,9.32697476,3426.6,3426.5,0.2922]
[1735657029960,9.32697476,3426.6,3426.0,0.73061]
[1735657030160,9.32697476,3426.6,3426.4,0.29221]
[1735657030365,3.6462,3426.6,3426.5,0.2922]
[1735657030767,3.6462,3426.6,3425.9,0.73064]
[1735657031167,3.6462,3426.6,3426.4,0.29221]
[1735657031470,3.6462,3426.6,3426.3,0.29222]
[1735657031665,3.6462,3426.6,3426.4,0.29221]
[1735657031870,3.6462,3426.6,3426.3,0.29222]
[1735657032270,3.6462,3426.6,3425.7,3.2078]
[1735657032469,0.29222,3426.4,3426.0,0.29224]
[1735657033267,3.50003,3426.2,3425.8,0.29226]
[1735657033565,0.4465,3426.1,3426.0,0.29225]
[1735657033766,0.4465,3426.1,3425.9,0.29225]
[1735657033969,0.4465,3426.1,3425.4,2.79051529]
[1735657034169,0.29225,3426.0,3425.6,0.29227]
[1735657034368,0.4465,3426.1,3425.7,0.29227]
[1735657034569,0.73874,3426.1,3425.8,0.29226]
[1735657034764,0.4465,3426.1,3425.9,0.29225]
[1735657035070,0.73874,3426.1,3425.8,0.29226]
[1735657035471,0.4192,3426.0,3425.8,0.29225]
[1735657035772,0.4192,3426.0,3425.8,0.29226]
[1735657035973,0.29226,3425.9,3425.6,0.29228]
[1735657036278,0.4378,3425.8,3425.7,0.29227]
[1735657037067,8.88857476,3426.6,3425.8,0.73066]
[1735657037273,9.30777476,3426.6,3425.8,0.4543]
[1735657037471,3.627,3426.6,3426.1,0.29223]
[1735657037677,0.29222,3426.3,3426.1,0.29223]
[1735657037973,0.29221,3426.4,3426.2,0.29222]
[1735657038169,3.627,3426.6,3425.7,3.93848]
[1735657038170,0.29221,3426.5,3426.3,0.29222]
[1735657038470,3.627,3426.6,3425.8,0.73066]
[1735657038778,3.627,3426.6,3426.4,0.29221]
[1735657038970,3.627,3426.6,3425.8,0.73066]
[1735657039176,3.627,3426.6,3426.5,0.2922]
[1735657039571,0.8946,3426.9,3426.2,2.79051529]
[1735657039766,5.68077476,3427.2,3427.1,0.29215]
[1735657040670,4.1221,3428.1,3427.9,0.29208]
[1735657040671,5.68077476,3428.0,3427.9,0.29208]
[1735657041270,5.97284476,3428.0,3427.4,5.99831529]
[1735657041677,5.68077476,3428.0,3427.9,0.29208]
[1735657041979,3.2078,3428.1,3428.0,0.29207]
[1735657042673,0.29205,3428.3,3428.0,0.29207]
[1735657043368,3.91903,3428.5,3428.2,0.29205]
[1735657043576,3.627,3428.5,3428.4,0.29204]
[1735657043770,3.627,3428.5,3427.9,0.73022]
[1735657044073,3.627,3428.5,3428.3,0.29204]
[1735657044473,3.627,3428.5,3427.8,5.99831529]
[1735657044677,3.627,3428.5,3428.4,0.29204]
[1735657045878,3.627,3428.5,3427.8,5.99831529]
[1735657046073,0.29204,3428.4,3427.9,0.29208]
[1735657046275,0.29206,3428.2,3427.9,0.29208]
[1735657046471,3.627,3428.5,3427.8,3.2078]
[1735657046779,3.627,3428.5,3427.9,0.29208]
[1735657046980,0.29205,3428.3,3428.0,0.29207]
[1735657047178,3.627,3428.5,3427.8,3.2078]
[1735657047380,0.29205,3428.3,3428.0,0.29207]
[1735657047579,3.627,3428.5,3427.8,3.2078]
[1735657047783,0.29206,3428.2,3427.9,0.29208]
[1735657047984,0.29205,3428.3,3428.0,0.29207]
[1735657048282,0.29205,3428.4,3428.1,0.29207]
[1735657048984,3.627,3428.5,3427.8,3.2078]
[1735657049183,0.29205,3428.4,3427.8,3.2078]
[1735657049382,0.4192,3428.5,3427.8,5.99831529]
[1735657049580,0.4192,3428.5,3428.4,0.29204]
[1735657051185,0.4545,3428.6,3428.5,0.29203]
[1735657051785,0.4247,3428.9,3428.8,0.29201]
[1735657051987,0.4426,3429.2,3428.7,3.2078]
[1735657052287,0.4426,3429.2,3429.1,0.29198]
[1735657052480,3.2078,3429.3,3429.2,0.29197]
[1735657052788,0.4568,3429.5,3429.2,0.29197]
[1735657053094,0.74875,3429.5,3429.2,0.29197]
[1735657053276,0.4568,3429.5,3429.2,0.29197]
[1735657053482,0.4568,3429.5,3428.7,3.2078]
[1735657053787,0.4568,3429.5,3429.4,0.29196]
[1735657054288,0.4568,3429.5,3429.0,2.79051529]
[1735657054591,0.29196,3429.4,3429.1,0.29198]
[1735657054886,0.4568,3429.5,3428.9,1.296]
[1735657055088,0.74875,3429.5,3429.2,0.29197]
[1735657055389,0.74875,3429.5,3428.9,1.296]
[1735657055390,0.74875,3429.5,3429.3,0.29196]
[1735657055687,0.29196,3429.4,3429.2,0.29197]
[1735657055877,0.4568,3429.5,3428.9,1.296]
[1735657056083,0.4568,3429.5,3428.9,0.29199]
[1735657056281,0.4568,3429.5,3428.7,3.2078]
[1735657056480,0.29198,3429.2,3428.7,3.2078]
[1735657056676,0.4568,3429.5,3428.7,3.2078]
[1735657056880,0.74875,3429.5,3429.2,0.29197]
[1735657057289,0.4568,3429.5,3429.3,0.29196]
[1735657057580,0.4568,3429.5,3428.8,0.73002]
[1735657057788,0.4568,3429.5,3429.3,0.29196]
[1735657058797,0.4568,3429.5,3429.4,0.29196]
[1735657059483,0.4568,3429.5,3428.5,1.296]
[1735657059690,0.4568,3429.5,3428.3,3.2078]
[1735657059691,3.2078,3429.2,3428.3,3.2078]
[1735657059879,0.29199,3429.0,3428.7,0.29201]
[1735657060082,0.29201,3428.8,3428.3,3.2078]
[1735657060284,0.4395,3429.1,3428.3,3.2078]
[1735657060492,0.4395,3429.1,3429.0,0.29199]
[1735657060892,0.4395,3429.1,3428.3,3.2078]
[1735657061292,0.29204,3428.5,3428.0,1.296]
[1735657061489,0.29204,3428.5,3428.2,0.29205]
[1735657061690,0.423,3428.4,3428.3,0.29205]
[1735657061987,0.423,3428.4,3427.9,3.2078]
[1735657062198,3.6308,3428.4,3427.7,1.296]
[1735657062397,0.29206,3428.2,3427.7,0.29209]
[1735657062696,0.29207,3428.1,3427.9,0.29208]
[1735657063390,0.4462,3428.3,3427.5,4.5038]
[1735657063691,0.29208,3428.0,3427.8,0.29209]
[1735657063891,0.29207,3428.1,3427.5,4.5038]
[1735657064188,0.29207,3428.1,3427.8,0.29209]
[1735657064384,0.29207,3428.1,3427.9,0.29208]
[1735657064584,0.29207,3428.1,3427.5,4.5038]
[1735657064785,0.4462,3428.3,3427.8,0.29208]
[1735657064993,0.29207,3428.1,3427.8,0.29208]
[1735657065394,3.2078,3427.9,3427.4,0.29212]
[1735657065583,0.2921,3427.8,3427.1,3.6636]
[1735657065786,3.2078,3427.9,3427.1,3.6636]
[1735657065999,3.49989,3427.9,3427.6,0.2921]
[1735657066794,3.2078,3427.9,3427.4,2.79051529]
[1735657067095,0.4462,3428.3,3428.2,0.29206]
[1735657067692,0.73826,3428.3,3427.9,0.29208]
[1735657067892,0.73826,3428.3,3428.0,0.29207]
[1735657068097,0.73826,3428.3,3427.7,1.297]
[1735657068288,0.29206,3428.2,3427.9,0.29208]
[1735657068603,0.73825,3428.3,3428.0,0.29207]
[1735657069691,0.4462,3428.3,3427.7,1.297]
[1735657069887,0.4462,3428.3,3427.7,2.02725]
[1735657070090,0.73825,3428.3,3427.7,1.297]
[1735657070294,0.4462,3428.3,3427.7,1.297]
[1735657070695,0.73825,3428.3,3427.7,1.297]
[1735657071097,0.73825,3428.3,3427.5,3.93809]
[1735657071098,0.29209,3427.9,3427.6,0.2921]
[1735657071290,0.2921,3427.8,3427.6,0.2921]
[1735657071497,0.29208,3428.0,3427.8,0.29209]
[1735657071696,0.29208,3427.9,3427.6,0.2921]
[1735657071896,0.29208,3427.9,3427.7,0.2921]
[1735657072096,0.4462,3428.3,3427.2,0.73035]
[1735657072303,0.29207,3428.1,3427.4,0.73032]
[1735657072799,0.4462,3428.3,3427.6,0.73028]
[1735657072997,0.4462,3428.3,3428.2,0.29206]
[1735657073193,0.423,3428.4,3427.9,0.7302]
[1735657073392,0.423,3428.4,3428.3,0.29205]
[1735657073595,0.423,3428.4,3427.9,3.2078]
[1735657073803,0.4316,3428.7,3428.6,0.29202]
[1735657074604,0.292,3428.9,3428.7,0.29201]
[1735657074898,3.2078,3429.0,3428.0,1.297]
[1735657074899,5.99831529,3429.0,3428.0,1.297]
[1735657075101,3.2078,3428.6,3428.5,0.29203]
[1735657075301,3.2078,3428.6,3428.0,0.73019]
[1735657075302,3.2078,3428.6,3428.4,0.29203]
[1735657075498,3.2078,3428.6,3428.5,0.29203]
[1735657075899,0.29202,3428.7,3428.5,0.29203]
[1735657076104,3.2078,3429.0,3427.9,1.297]
[1735657076294,0.29205,3428.3,3428.1,0.29206]
[1735657076491,3.49984,3428.5,3428.3,0.29205]
[1735657076701,0.4274,3428.6,3428.0,1.02226]
[1735657076899,0.71943,3428.6,3428.4,0.29204]
[1735657077103,0.71943,3428.6,3428.0,0.73019]
[1735657077104,0.4274,3428.6,3428.0,0.73019]
[1735657077301,0.71943,3428.6,3428.4,0.29204]
[1735657077502,0.71943,3428.6,3428.3,0.29205]
[1735657077503,0.29203,3428.5,3428.3,0.29205]
[1735657078005,0.29203,3428.5,3427.9,1.297]
[1735657078006,0.4569,3428.4,3427.9,1.297]
[1735657078201,0.74894,3428.4,3428.2,0.29205]
[1735657078401,0.29205,3428.3,3428.1,0.29206]
[1735657078600,0.4569,3428.4,3427.9,1.297]
[1735657078804,0.4569,3428.4,3428.2,0.29205]
[1735657079006,0.29205,3428.3,3428.1,0.29206]
[1735657079500,0.74895,3428.4,3428.2,0.29205]
[1735657079709,0.4569,3428.4,3428.3,0.29205]
[1735657080901,0.4569,3428.4,3427.9,1.297]
[1735657081103,0.4569,3428.4,3427.6,0.73027]
[1735657081400,3.2078,3428.0,3426.9,7.76800789]
[1735657081600,0.29211,3427.6,3427.4,0.29212]
[1735657082099,0.4576,3427.9,3426.9,7.76800789]
[1735657082299,0.74968,3427.9,3427.3,3.2078]
[1735657082809,0.74968,3427.9,3427.7,0.2921]
[1735657083004,0.29209,3427.8,3427.6,0.2921]
[1735657083206,0.29212,3427.6,3427.3,0.29213]
[1735657083411,0.29213,3427.4,3426.9,3.2078]
[1735657083617,0.4403,3427.5,3427.2,0.29214]
[1735657083810,0.73242,3427.5,3427.2,0.29214]
[1735657084107,0.4403,3427.5,3427.4,0.29213]
[1735657084809,0.4576,3427.9,3427.8,0.29209]
[1735657085006,0.4576,3427.9,3427.4,0.73032]
[1735657085007,0.4576,3427.9,3427.3,3.2078]
[1735657085311,0.29209,3427.8,3427.3,3.49993]
[1735657085612,0.29212,3427.5,3427.3,0.29213]
[1735657085810,0.73291,3427.7,3427.4,0.29212]
[1735657086313,0.73291,3427.7,3427.6,0.29211]
[1735657086314,0.4408,3427.7,3427.6,0.29211]
[1735657086611,0.29212,3427.5,3427.3,0.29213]
[1735657086809,0.29211,3427.6,3427.3,0.29213]
[1735657087007,0.43,3427.4,3427.3,0.29213]
[1735657087309,0.72213,3427.4,3427.2,0.29214]
[1735657087510,0.43,3427.4,3426.9,3.2078]
[1735657087709,0.43,3427.4,3427.3,0.29213]
[1735657090315,0.43,3427.4,3426.9,3.93821]
[1735657090514,0.29214,3427.2,3427.1,0.29215]
[1735657090811,0.29216,3427.0,3426.9,3.49996]
[1735657091018,0.29214,3427.2,3427.0,0.29216]
[1735657091217,0.4288,3427.3,3426.9,3.2078]
[1735657091418,0.29216,3427.1,3426.9,0.29216]
[1735657092022,3.2078,3427.2,3426.5,1.297]
[1735657092309,3.2078,3427.2,3426.4,0.456]
[1735657092519,3.2078,3427.2,3426.5,0.73051]
[1735657092709,3.2078,3427.2,3427.1,0.29215]
[1735657093416,3.2078,3427.2,3426.7,3.2078]
[1735657093720,3.2078,3427.2,3427.1,0.29215]
[1735657094921,3.2078,3427.2,3426.7,3.2078]
[1735657095112,0.29215,3427.1,3426.9,0.29217]
[1735657095712,0.29215,3427.1,3426.7,3.2078]
[1735657095917,0.29215,3427.1,3426.9,0.29217]
[1735657096513,3.2078,3427.2,3426.4,3.24080859]
[1735657096821,0.29216,3427.0,3426.8,0.29217]
[1735657097422,0.29218,3426.8,3426.5,0.2922]
[1735657097717,0.4321,3426.9,3426.3,3.2078]
[1735657098022,0.29218,3426.8,3426.5,0.2922]
[1735657098322,0.4335,3426.7,3426.6,0.29219]
[1735657098516,0.8567,3426.7,3426.6,0.29219]
[1735657099018,1.14889,3426.7,3426.5,0.2922]
[1735657100213,1.14889,3426.7,3426.6,0.29219]
[1735657100214,0.8567,3426.7,3426.6,0.29219]
[1735657100414,0.8567,3426.7,3426.3,3.2078]
[1735657100615,0.8567,3426.7,3426.6,0.29219]
[1735657101620,3.2078,3427.2,3426.4,2.78480859]
[1735657101817,3.2078,3427.2,3427.1,0.29215]
[1735657102320,5.67458508,3427.6,3427.5,0.29212]
[1735657102621,3.2078,3427.8,3427.2,3.51515859]
[1735657102819,8.88238508,3428.3,3427.6,0.73028]
[1735657103121,8.88238508,3428.3,3428.2,0.29206]
[1735657103323,5.67458508,3428.3,3428.2,0.29206]
[1735657104125,0.8642,3428.4,3428.3,0.29205]
[1735657104823,0.29202,3428.7,3428.4,0.29203]
[1735657105217,0.8625,3428.8,3427.9,3.2078]
[1735657105514,3.2078,3428.5,3427.5,3.2078]
[1735657105720,3.2078,3428.0,3427.2,5.99260859]
[1735657105919,3.2078,3428.1,3428.0,0.29207]
[1735657106218,3.2078,3428.1,3427.9,0.29208]
[1735657106726,0.4297,3428.0,3427.9,0.29208]
[1735657106928,3.2078,3428.1,3427.6,0.73027]
[1735657107220,8.88238508,3428.5,3428.4,0.29204]
[1735657107623,3.2078,3428.5,3428.3,0.29205]
[1735657108022,0.29205,3428.4,3427.6,5.99260859]
[1735657108222,3.49984,3428.5,3428.2,0.29205]
[1735657109019,0.29205,3428.3,3427.7,0.2921]
[1735657109326,0.29205,3428.4,3428.1,0.29206]
[1735657109523,0.29205,3428.4,3428.0,0.29207]
[1735657109821,0.29206,3428.3,3428.0,0.29207]
[1735657110023,0.29206,3428.2,3427.9,0.29208]
[1735657110218,0.4301,3428.2,3428.0,0.29207]
[1735657110418,0.29207,3428.1,3427.6,0.2921]
[1735657110625,0.4394,3428.0,3427.9,0.29208]
[1735657111226,3.2078,3428.1,3428.0,0.29207]
[1735657111432,3.2078,3428.1,3427.4,0.4629]
[1735657111721,3.2078,3428.1,3427.2,7.28860859]
[1735657112030,3.2078,3428.1,3427.9,0.29208]
[1735657112323,3.2078,3428.1,3427.4,1.17812]
[1735657112520,3.2078,3428.1,3428.0,0.29207]
[1735657112723,3.2078,3428.1,3427.5,0.29212]
[1735657112919,3.2078,3428.1,3427.9,0.29208]
[1735657113728,3.49987,3428.1,3427.4,1.17812]
[1735657113930,0.73168,3428.0,3427.8,0.29209]
[1735657114233,0.4396,3428.0,3427.9,0.29208]
[1735657114416,0.4396,3428.0,3427.8,0.29208]
[1735657114622,0.4396,3428.0,3427.9,0.29208]
[1735657115123,0.4396,3428.0,3427.4,3.05781879]
[1735657115325,0.4396,3428.0,3427.4,0.73031]
[1735657115522,0.4396,3428.0,3427.8,0.29209]
[1735657115823,0.73168,3428.0,3427.8,0.29209]
[1735657116630,6.1698,3428.0,3426.8,3.2078]
[1735657116931,0.29214,3427.3,3426.8,3.2078]
[1735657117130,3.49993,3427.4,3427.0,0.29215]
[1735657117330,0.8935,3427.3,3427.0,0.29215]
[1735657117524,0.8935,3427.3,3427.2,0.29214]
[1735657117721,3.2078,3427.8,3427.0,3.62350879]
[1735657117927,3.2078,3427.8,3427.6,0.2921]
[1735657118220,0.4414,3428.1,3427.3,2.32750879]
[1735657118427,3.6599,3428.2,3428.1,0.29207]
[1735657118628,3.2078,3428.2,3428.1,0.29207]
[1735657118827,5.69424145,3428.6,3428.5,0.29203]
[1735657120126,3.2078,3428.8,3428.6,0.29202]
[1735657120326,3.2078,3428.8,3428.7,0.29202]
[1735657120633,3.49981,3428.8,3428.7,0.29202]
[1735657120829,3.2078,3428.8,3428.0,4.36469]
[1735657121031,3.2078,3428.8,3428.4,0.29204]
[1735657121330,3.2078,3428.8,3427.8,0.73024]
[1735657121528,0.29202,3428.7,3428.3,0.29204]
[1735657121733,3.2078,3428.8,3427.9,0.73022]
[1735657121932,3.49981,3428.8,3428.6,0.29202]
[1735657122123,0.29202,3428.7,3428.5,0.29203]
[1735657122326,0.29203,3428.6,3428.0,3.2078]
[1735657122526,3.2078,3428.8,3428.6,0.29202]
[1735657122734,3.49981,3428.8,3428.5,0.29203]
[1735657123831,0.29202,3428.7,3428.1,0.29207]
[1735657124028,0.29202,3428.7,3428.5,0.29203]
[1735657124228,3.2078,3428.8,3428.6,0.29202]
[1735657124733,3.2078,3428.8,3428.2,0.73015]
[1735657124930,3.2078,3428.8,3428.5,0.29203]
[1735657125125,0.29202,3428.7,3428.5,0.29203]
[1735657125335,0.29202,3428.7,3428.0,3.93798]
[1735657125535,0.29202,3428.7,3428.4,0.29203]
[1735657125929,3.2078,3428.8,3428.1,0.29206]
[1735657126129,0.73005,3428.7,3428.0,3.49987]
[1735657126337,0.29205,3428.3,3428.1,0.29207]
[1735657126635,0.73005,3428.7,3427.8,0.29209]
[1735657126636,0.29208,3428.0,3427.8,0.29209]
[1735657126839,0.29209,3427.9,3427.6,0.2921]
[1735657127134,0.72969,3427.9,3427.6,0.2921]
[1735657127330,0.72968,3427.9,3427.4,3.2078]
[1735657127531,0.4376,3427.9,3427.4,3.2078]
[1735657127731,0.72969,3427.9,3427.7,0.2921]
[1735657127930,0.29211,3427.6,3427.1,2.78170707]
[1735657128124,0.4376,3427.9,3427.1,2.78170707]
[1735657128337,0.4376,3427.9,3427.5,0.29211]
[1735657128637,0.2921,3427.7,3427.1,2.78170707]
[1735657128835,0.4376,3427.9,3427.1,2.78170707]
[1735657129033,3.2078,3428.0,3427.3,3.2078]
[1735657129233,3.2078,3428.0,3427.9,0.29208]
[1735657130238,0.905,3428.2,3428.1,0.29207]
[1735657131236,5.69424145,3428.8,3428.1,3.2078]
[1735657131434,5.69424145,3428.8,3428.7,0.29202]
[1735657131937,3.2078,3429.0,3428.9,0.292]
[1735657132539,0.4398,3429.1,3428.6,2.78170707]
[1735657132740,0.4398,3429.1,3429.0,0.29199]
[1735657133038,3.2078,3429.4,3429.3,0.29196]
[1735657133241,3.6476,3429.4,3428.9,3.2078]
[1735657133443,0.29198,3429.2,3429.0,0.29199]
[1735657133932,0.29198,3429.2,3428.9,3.49979]
[1735657134125,0.292,3428.9,3428.5,0.29203]
[1735657134330,0.4661,3428.8,3428.7,0.29202]
[1735657135933,0.435,3429.1,3429.0,0.29199]
[1735657139541,5.69424145,3429.8,3429.0,4.07670707]
[1735657139741,5.69424145,3429.8,3429.7,0.29193]
[1735657140836,0.9332,3429.9,3429.6,3.2078]
[1735657141033,0.9332,3429.9,3429.8,0.29192]
[1735657143540,0.9332,3429.9,3429.7,0.29193]
[1735657143843,0.9332,3429.9,3429.1,3.2078]
[1735657144044,3.2078,3429.7,3429.1,3.2078]
[1735657144247,0.29195,3429.5,3429.3,0.29196]
[1735657144439,0.29194,3429.6,3429.4,0.29195]
[1735657144947,0.29194,3429.6,3429.1,3.2078]
[1735657145243,0.29194,3429.6,3429.3,0.29196]
[1735657145547,3.2078,3429.7,3429.1,5.53266293]
[1735657145737,3.49973,3429.7,3429.4,0.29195]
[1735657146243,0.9332,3429.9,3429.2,0.72994]
[1735657146444,0.9332,3429.9,3429.7,0.29192]
[1735657146647,1.22512,3429.9,3429.6,0.29193]
[1735657146941,0.29195,3429.5,3429.1,3.2078]
[1735657147146,0.29195,3429.5,3429.3,0.29196]
[1735657147337,0.29194,3429.6,3429.3,0.29196]
[1735657147542,3.2078,3429.7,3429.6,0.29194]
[1735657147944,0.9332,3429.9,3429.7,0.29193]
[1735657148445,0.9332,3429.9,3429.8,0.29192]
[1735657149146,0.4663,3429.9,3429.8,0.29192]
[1735657149347,5.69424145,3430.3,3429.7,2.32486293]
[1735657149546,5.69424145,3430.3,3430.2,0.29189]
[1735657149748,4.38215,3430.6,3430.0,2.32486293]
[1735657149950,4.38215,3430.6,3430.3,0.29187]
[1735657150150,4.0903,3430.6,3430.3,0.29187]
[1735657150445,4.0903,3430.6,3429.8,0.72981]
[1735657150446,11.41516293,3430.6,3429.8,0.29192]
[1735657150649,0.2919,3430.1,3429.7,0.29192]
[1735657150949,0.4395,3430.0,3429.8,0.29192]
[1735657151154,0.4357,3429.9,3429.2,0.72992]
[1735657151343,1.18312,3429.9,3429.6,0.29193]
[1735657151543,0.8912,3429.9,3429.8,0.29192]
[1735657152147,0.8912,3429.9,3429.7,0.29193]
[1735657152749,0.8912,3429.9,3429.7,0.29192]
[1735657153049,0.8912,3429.9,3429.4,3.2078]
[1735657153246,0.8912,3429.9,3429.8,0.29192]
[1735657154546,3.2078,3430.7,3429.7,2.32486293]
[1735657154855,1.3287,3430.5,3430.4,0.29187]
[1735657155348,1.3287,3430.5,3429.9,3.2078]
[1735657155553,1.62057,3430.5,3430.2,0.29188]
[1735657155742,0.29187,3430.4,3430.2,0.29189]
[1735657155939,1.3287,3430.5,3429.9,3.2078]
[1735657156149,1.3287,3430.5,3430.0,0.72977]
[1735657156348,1.3287,3430.5,3430.4,0.29187]
[1735657156852,0.2919,3430.1,3429.9,0.29191]
[1735657157144,2.32486293,3430.0,3429.0,4.37407]
[1735657157348,0.29194,3429.6,3429.4,0.29195]
[1735657157544,0.8953,3429.5,3429.4,0.29196]
[1735657158049,0.8953,3429.5,3429.0,3.2078]
[1735657158346,3.2078,3429.4,3428.7,1.295]
[1735657158543,3.2078,3429.4,3428.6,3.2078]
[1735657158847,0.4592,3429.3,3428.6,3.2078]
[1735657159353,0.29198,3429.2,3429.0,0.29199]
[1735657159644,0.4592,3429.3,3429.0,0.29198]
[1735657159849,0.75117,3429.3,3429.0,0.29198]
[1735657160050,0.4592,3429.3,3429.0,0.29198]
[1735657160251,0.29198,3429.2,3429.0,0.29198]
[1735657160447,0.4592,3429.3,3429.1,0.29198]
[1735657160647,0.4592,3429.3,3429.2,0.29197]
[1735657162053,0.4592,3429.3,3429.0,0.29199]
[1735657162256,0.29199,3429.0,3428.6,3.2078]
[1735657162546,0.4592,3429.3,3428.6,3.2078]
[1735657162754,0.29198,3429.1,3428.9,0.29199]
[1735657162949,0.29198,3429.2,3429.0,0.29199]
[1735657163151,0.4592,3429.3,3428.6,3.2078]
[1735657163448,0.75117,3429.3,3428.8,0.29201]
[1735657163651,0.4592,3429.3,3428.6,3.2078]
[1735657163851,0.29199,3429.1,3428.9,0.292]
[1735657164249,0.4592,3429.3,3428.6,3.2078]
[1735657164450,0.29198,3429.2,3429.0,0.29199]
[1735657165058,0.4592,3429.3,3428.2,5.23295]
[1735657165059,0.292,3429.0,3428.2,5.23295]
[1735657165350,3.2078,3429.0,3427.9,0.7302]
[1735657165654,0.29201,3428.8,3428.6,0.29202]
[1735657165856,0.9046,3428.7,3428.6,0.29202]
[1735657166049,1.3459,3428.7,3428.1,0.73016]
[1735657166254,1.3459,3428.7,3428.5,0.29203]
[1735657166551,1.3459,3428.7,3428.6,0.29202]
[1735657167349,0.8997,3428.7,3428.6,0.29202]
[1735657168457,0.8997,3428.7,3428.3,0.73013]
[1735657168458,0.4462,3429.2,3428.4,3.20652553]
[1735657168652,0.4462,3429.2,3429.1,0.29198]
[1735657169053,0.73817,3429.2,3429.0,0.29199]
[1735657169256,0.4462,3429.2,3429.0,0.29199]
[1735657169554,0.73817,3429.2,3429.0,0.29199]
[1735657169751,0.73817,3429.2,3429.0,0.29198]
[1735657170354,0.4462,3429.2,3429.1,0.29198]
[1735657170757,0.4462,3429.2,3428.8,0.73001]
[1735657170758,0.8986,3429.3,3428.8,0.73001]
[1735657170956,3.2078,3429.4,3429.3,0.29196]
[1735657172355,0.4316,3429.8,3429.7,0.29193]
[1735657172960,5.6873731,3430.2,3429.6,0.72984]
[1735657173158,0.9058,3430.3,3430.2,0.29189]
[1735657173857,0.9058,3430.3,3430.1,0.29189]
[1735657174053,0.9058,3430.3,3429.6,2.78092553]
[1735657174261,0.29193,3429.7,3429.0,4.5028]
[1735657174560,0.29193,3429.8,3429.6,0.29194]
[1735657174963,0.4311,3429.7,3429.6,0.29194]
[1735657175860,3.2078,3429.9,3429.8,0.29192]
[1735657176561,6.1184731,3430.2,3430.1,0.2919]
[1735657177058,0.4311,3430.2,3430.1,0.2919]
[1735657177454,0.29191,3430.0,3429.5,3.2078]
[1735657177650,0.72299,3430.2,3429.6,0.29194]
[1735657177960,0.4311,3430.2,3430.1,0.2919]
[1735657180661,0.4311,3430.2,3430.0,0.2919]
[1735657181058,0.72299,3430.2,3429.9,0.29191]
[1735657181359,0.72299,3430.2,3429.2,1.295]
[1735657181360,0.29191,3429.9,3429.2,1.295]
[1735657181659,3.2078,3430.0,3429.6,0.29193]
[1735657181864,0.29193,3429.7,3429.5,0.29195]
[1735657182067,0.29193,3429.7,3429.0,9.1469]
[1735657182068,0.8955,3429.6,3429.0,3.2078]
[1735657182357,0.8955,3429.6,3428.9,4.58055159]
[1735657182358,3.2078,3429.2,3428.9,4.58055159]
[1735657182558,0.29199,3429.0,3428.9,4.58055159]
[1735657183157,3.2078,3429.2,3428.4,3.2078]
[1735657183363,0.29203,3428.5,3428.4,3.2078]
[1735657183567,2.32623909,3428.7,3428.3,4.58055159]
[1735657183869,3.2078,3428.4,3428.3,4.58055159]
[1735657184164,5.82607909,3428.4,3428.3,0.90635159]
[1735657184464,5.53403909,3428.4,3428.1,6.87082739]
[1735657184661,3.2078,3428.4,3427.3,2.32623909]
[1735657184861,0.29207,3428.1,3427.3,2.32623909]
[1735657185169,5.53403909,3428.4,3427.4,0.73032]
[1735657185360,3.49984,3428.4,3428.0,0.29207]
[1735657185666,3.2078,3428.4,3427.6,2.32623909]
[1735657185865,0.29203,3428.6,3428.2,0.29205]
[1735657186272,4.55258984,3428.3,3428.2,0.29205]
[1735657186467,4.55258984,3428.3,3427.8,0.4264]
[1735657186772,4.55258984,3428.3,3428.1,0.29206]
[1735657187062,7.76038984,3428.4,3427.8,0.4264]
[1735657187269,0.29205,3428.3,3427.9,0.29208]
[1735657187467,0.29206,3428.2,3427.9,0.29208]
[1735657188059,7.76038984,3428.4,3427.8,0.4264]
[1735657188264,8.05242984,3428.4,3427.8,0.4264]
[1735657188463,8.05242984,3428.4,3428.0,0.29207]
[1735657188669,8.05242984,3428.4,3427.8,0.4264]
[1735657188670,7.76038984,3428.4,3427.8,0.4264]
[1735657188878,0.29207,3428.1,3427.7,0.4566]
[1735657189177,0.29207,3428.1,3427.7,0.7487]
[1735657189478,0.29206,3428.2,3427.8,0.29209]
[1735657189679,8.05243984,3428.4,3428.0,0.29207]
[1735657190175,8.05243984,3428.4,3428.1,0.29207]
[1735657190676,3.49985,3428.4,3428.1,0.29207]
[1735657191473,0.29205,3428.3,3428.0,0.29207]